[Event "Live Chess"]
[Site "Chess.com"]
[Date "2023.09.16"]
[Round "-"]
[White "Gustavoksbr"]
[Black "Gabriel0298"]
[Result "1-0"]
[WhiteElo "1910"]
[BlackElo "1599"]
[TimeControl "900+5"]
[EndTime "16:28:28 PDT"]
[Termination "Gustavoksbr venceu por desistência"]

1. e4 {[%clk 0:15:03.8]} 1... e6 {[%clk 0:15:04.6]} 2. d4 {[%clk 0:15:07.5]}
2... d5 {[%clk 0:15:09.5]} 3. e5 {[%clk 0:15:11.2]} 3... c5 {[%clk 0:15:13.3]}
4. c3 {[%clk 0:15:15.5]} 4... Nc6 {[%clk 0:15:16.8]} 5. Nf3 {[%clk 0:15:19.9]}
5... Qb6 {[%clk 0:15:20.2]} 6. Bd3 {[%clk 0:15:24.3]} 6... Bd7 {[%clk
0:15:23.4]} 7. O-O {[%clk 0:15:28.4]} 7... cxd4 {[%clk 0:15:27]} 8. cxd4 {[%clk
0:15:32.7]} 8... Nxd4 {[%clk 0:15:31.2]} 9. Nxd4 {[%clk 0:15:37.1]} 9... Qxd4
{[%clk 0:15:35.6]} 10. Nc3 {[%clk 0:15:39.5]} 10... Bb4 {[%clk 0:15:40]} 11. Be3
{[%clk 0:15:32]} 11... Qxe5 {[%clk 0:15:36.7]} 12. Nb5 {[%clk 0:15:33.8]} 12...
Bxb5 {[%clk 0:15:23.6]} 13. Bxb5+ {[%clk 0:15:36.3]} 13... Ke7 {[%clk
0:15:28.2]} 14. Qg4 {[%clk 0:15:15.2]} 14... Bd6 {[%clk 0:15:19.8]} 15. g3
{[%clk 0:14:51.9]} 15... f5 {[%clk 0:15:21.1]} 16. Qh4+ {[%clk 0:14:29.8]} 16...
Nf6 {[%clk 0:15:22.5]} 17. Bd3 {[%clk 0:14:10]} 17... h6 {[%clk 0:15:18.3]} 18.
Qa4 {[%clk 0:13:50.6]} 18... Ng4 {[%clk 0:15:08.3]} 19. Bd4 {[%clk 0:13:38.5]}
19... b5 {[%clk 0:15:03.5]} 20. Bxb5 {[%clk 0:13:20.6]} 20... Qe4 {[%clk
0:15:00.7]} 21. f3 {[%clk 0:12:41.1]} 1-0

[Event "Live Chess"]
[Site "Chess.com"]
[Date "2023.09.16"]
[Round "-"]
[White "Tercette"]
[Black "Fellipezin"]
[Result "0-1"]
[WhiteElo "157"]
[BlackElo "1593"]
[TimeControl "900+5"]
[EndTime "16:28:39 PDT"]
[Termination "Fellipezin venceu por xeque-mate"]

1. e4 {[%clk 0:15:02.8]} 1... c5 {[%clk 0:15:00]} 2. Bc4 {[%clk 0:14:59.8]} 2...
e6 {[%clk 0:15:01.2]} 3. Qh5 {[%clk 0:15:02.6]} 3... Nf6 {[%clk 0:14:58.9]} 4.
Qxc5 {[%clk 0:14:54]} 4... Bxc5 {[%clk 0:14:59.8]} 5. e5 {[%clk 0:14:56.5]} 5...
Ne4 {[%clk 0:14:44.6]} 6. Nf3 {[%clk 0:14:57.4]} 6... Bxf2+ {[%clk 0:14:20.5]}
7. Ke2 {[%clk 0:14:54.6]} 7... Bb6 {[%clk 0:13:36.7]} 8. Ng5 {[%clk 0:14:53.5]}
8... Nxg5 {[%clk 0:13:39.6]} 9. d4 {[%clk 0:14:51]} 9... d5 {[%clk 0:13:39.3]}
10. Bd3 {[%clk 0:14:52]} 10... Bxd4 {[%clk 0:13:32.4]} 11. h4 {[%clk 0:14:54.6]}
11... Ne4 {[%clk 0:13:33.3]} 12. Bxe4 {[%clk 0:14:53.7]} 12... dxe4 {[%clk
0:13:36]} 13. Bg5 {[%clk 0:14:57.2]} 13... Qa5 {[%clk 0:13:32.1]} 14. Bd2 {[%clk
0:14:55.4]} 14... Qb5+ {[%clk 0:13:28.1]} 15. Kd1 {[%clk 0:14:57.7]} 15... Qxe5
{[%clk 0:13:30.8]} 16. c3 {[%clk 0:15:00.3]} 16... Qh5+ {[%clk 0:13:29.2]} 17.
Kc2 {[%clk 0:15:01.4]} 17... Bf6 {[%clk 0:13:26.5]} 18. Rg1 {[%clk 0:14:59.1]}
18... e5 {[%clk 0:13:23.4]} 19. g4 {[%clk 0:15:00]} 19... Bxg4 {[%clk
0:13:26.5]} 20. Na3 {[%clk 0:14:56.1]} 20... Bf5 {[%clk 0:13:29]} 21. Nb5 {[%clk
0:14:58.9]} 21... e3+ {[%clk 0:13:31.1]} 22. Kc1 {[%clk 0:14:57.4]} 22... exd2+
{[%clk 0:13:33.6]} 23. Kxd2 {[%clk 0:14:54.2]} 23... Na6 {[%clk 0:13:35.2]} 24.
Nc7+ {[%clk 0:14:57.4]} 24... Nxc7 {[%clk 0:13:38.2]} 25. Rae1 {[%clk
0:14:50.5]} 25... Rd8+ {[%clk 0:13:34.5]} 26. Kc1 {[%clk 0:14:46.5]} 26... Qh6+
{[%clk 0:13:36.4]} 27. Re3 {[%clk 0:14:37.5]} 27... Qxe3# {[%clk 0:13:38.3]} 0-1

[Event "Live Chess"]
[Site "Chess.com"]
[Date "2023.09.16"]
[Round "-"]
[White "Yurxx21"]
[Black "Larissa1413"]
[Result "0-1"]
[WhiteElo "1491"]
[BlackElo "1918"]
[TimeControl "900+5"]
[EndTime "16:28:43 PDT"]
[Termination "Larissa1413 venceu por desistência"]

1. e4 {[%clk 0:14:55.3]} 1... e6 {[%clk 0:14:58.2]} 2. d4 {[%clk 0:14:55.4]}
2... d5 {[%clk 0:15:01.6]} 3. Nc3 {[%clk 0:14:57.2]} 3... Nf6 {[%clk 0:15:04.7]}
4. exd5 {[%clk 0:14:51]} 4... exd5 {[%clk 0:15:07]} 5. Nf3 {[%clk 0:14:43]} 5...
Bb4 {[%clk 0:15:06.5]} 6. Bd2 {[%clk 0:14:44.4]} 6... Nc6 {[%clk 0:15:06.7]} 7.
a3 {[%clk 0:14:35.6]} 7... Ba5 {[%clk 0:15:07.4]} 8. b4 {[%clk 0:14:38.6]} 8...
Bb6 {[%clk 0:15:07.9]} 9. Be3 {[%clk 0:14:35.4]} 9... O-O {[%clk 0:15:08.8]} 10.
Na4 {[%clk 0:14:26.4]} 10... Ne4 {[%clk 0:15:07.6]} 11. Nxb6 {[%clk 0:14:11.9]}
11... axb6 {[%clk 0:15:09.6]} 12. Bd3 {[%clk 0:13:53]} 12... Bg4 {[%clk
0:15:10.9]} 13. O-O {[%clk 0:13:49.6]} 13... Qf6 {[%clk 0:14:49.9]} 14. h3
{[%clk 0:13:35.8]} 14... Bh5 {[%clk 0:14:49.7]} 15. Be2 {[%clk 0:13:20.8]} 15...
Nc3 {[%clk 0:14:30.9]} 16. Qd3 {[%clk 0:13:01.4]} 16... Nxe2+ {[%clk 0:14:32.2]}
17. Qxe2 {[%clk 0:13:06.3]} 17... Rfe8 {[%clk 0:14:33]} 18. Qd3 {[%clk
0:12:53.7]} 18... Bxf3 {[%clk 0:14:32.3]} 19. gxf3 {[%clk 0:12:52.9]} 19... Qxf3
{[%clk 0:14:34.2]} 20. Kh2 {[%clk 0:12:38.3]} 20... Ne7 {[%clk 0:14:25.5]} 21.
Rg1 {[%clk 0:12:41.3]} 21... Ng6 {[%clk 0:14:28.1]} 22. Rg3 {[%clk 0:12:33.9]}
22... Qf6 {[%clk 0:14:26.5]} 23. Rag1 {[%clk 0:12:16.5]} 23... Kh8 {[%clk
0:13:47.1]} 24. R3g2 {[%clk 0:11:58.4]} 24... Nf4 {[%clk 0:13:15.2]} 25. Bxf4
{[%clk 0:11:27.4]} 25... Qxf4+ {[%clk 0:13:15.8]} 26. Kh1 {[%clk 0:11:31.8]}
26... g6 {[%clk 0:13:18.4]} 27. Rg3 {[%clk 0:10:09.6]} 27... Re4 {[%clk
0:13:14.6]} 28. Rf3 {[%clk 0:09:44.7]} 28... Qh4 {[%clk 0:12:55]} 29. c4 {[%clk
0:09:33.9]} 29... Rxd4 {[%clk 0:12:48.3]} 30. Qe3 {[%clk 0:08:43.5]} 30... Re4
{[%clk 0:12:24.5]} 31. Qc3+ {[%clk 0:08:36]} 31... d4 {[%clk 0:12:26.8]} 32. Qd3
{[%clk 0:08:06.4]} 32... f5 {[%clk 0:12:15]} 33. Rgg3 {[%clk 0:07:24.6]} 33...
Rae8 {[%clk 0:12:00.1]} 34. Kg2 {[%clk 0:07:27]} 34... c5 {[%clk 0:11:20.4]} 35.
bxc5 {[%clk 0:07:17.3]} 35... bxc5 {[%clk 0:11:22.2]} 36. Qb3 {[%clk 0:07:16.9]}
36... Qe7 {[%clk 0:11:15.6]} 37. Qb6 {[%clk 0:07:03.8]} 37... Re1 {[%clk
0:11:05.1]} 38. a4 {[%clk 0:06:38]} 38... Rf8 {[%clk 0:10:56.8]} 39. a5 {[%clk
0:06:34.8]} 39... Ra1 {[%clk 0:10:49]} 0-1

[Event "Live Chess"]
[Site "Chess.com"]
[Date "2023.09.16"]
[Round "-"]
[White "ViniciusBritoFc"]
[Black "Lucas-LGM"]
[Result "0-1"]
[WhiteElo "1192"]
[BlackElo "1571"]
[TimeControl "900+5"]
[EndTime "16:29:04 PDT"]
[Termination "Lucas-LGM venceu por xeque-mate"]

1. c4 {[%clk 0:15:03.5]} 1... e5 {[%clk 0:15:01.9]} 2. a3 {[%clk 0:15:06.8]}
2... Nc6 {[%clk 0:15:05.4]} 3. Nc3 {[%clk 0:15:07.1]} 3... Nf6 {[%clk
0:15:08.5]} 4. e4 {[%clk 0:15:05.1]} 4... Be7 {[%clk 0:15:03.1]} 5. b4 {[%clk
0:15:07]} 5... O-O {[%clk 0:14:49.9]} 6. Nf3 {[%clk 0:15:07.8]} 6... a6 {[%clk
0:14:52.9]} 7. b5 {[%clk 0:15:09.9]} 7... axb5 {[%clk 0:14:56.7]} 8. cxb5 {[%clk
0:15:14.7]} 8... Nd4 {[%clk 0:14:59.6]} 9. Nxe5 {[%clk 0:15:16]} 9... d5 {[%clk
0:14:48.6]} 10. exd5 {[%clk 0:15:09.2]} 10... Nxd5 {[%clk 0:14:51.9]} 11. Nxd5
{[%clk 0:15:13.2]} 11... Qxd5 {[%clk 0:14:54.6]} 12. Nf3 {[%clk 0:15:11.8]}
12... Nxb5 {[%clk 0:14:53.8]} 13. Bxb5 {[%clk 0:15:14.7]} 13... Qxb5 {[%clk
0:14:57.2]} 14. a4 {[%clk 0:15:12.8]} 14... Qd3 {[%clk 0:14:56.2]} 15. Ne5
{[%clk 0:15:09]} 15... Qe4+ {[%clk 0:14:54.2]} 16. Qe2 {[%clk 0:15:12.9]} 16...
Qxe2+ {[%clk 0:14:55]} 17. Kxe2 {[%clk 0:15:17.8]} 17... Bf6 {[%clk 0:14:59.1]}
18. Bb2 {[%clk 0:15:18.9]} 18... Re8 {[%clk 0:15:02.2]} 19. f4 {[%clk
0:15:21.7]} 19... g5 {[%clk 0:15:05]} 20. g3 {[%clk 0:15:24.8]} 20... h5 {[%clk
0:15:03.4]} 21. Kf2 {[%clk 0:15:22.9]} 21... gxf4 {[%clk 0:15:03.3]} 22. gxf4
{[%clk 0:15:27]} 22... Bxe5 {[%clk 0:15:04.9]} 23. Bxe5 {[%clk 0:15:29.6]} 23...
Bf5 {[%clk 0:14:56]} 24. Rhg1+ {[%clk 0:15:32.8]} 24... Kh7 {[%clk 0:14:56.4]}
25. Bxc7 {[%clk 0:15:36.2]} 25... Rac8 {[%clk 0:14:57.5]} 26. Rac1 {[%clk
0:15:35]} 26... Re7 {[%clk 0:14:53.7]} 27. Bd6 {[%clk 0:15:31.2]} 27... Rxc1
{[%clk 0:14:55.3]} 28. Rxc1 {[%clk 0:15:36.1]} 28... Rd7 {[%clk 0:14:59.4]} 29.
Bb4 {[%clk 0:15:32]} 29... Rd4 {[%clk 0:14:55.6]} 30. Bc3 {[%clk 0:15:03.9]}
30... Rxf4+ {[%clk 0:14:57.5]} 31. Ke3 {[%clk 0:15:07.5]} 31... Rxa4 {[%clk
0:15:00.7]} 32. Rf1 {[%clk 0:15:08]} 32... Bg6 {[%clk 0:15:03.5]} 33. d4 {[%clk
0:15:11.4]} 33... b5 {[%clk 0:15:04.3]} 34. d5 {[%clk 0:15:11.8]} 34... Ra3
{[%clk 0:15:07.3]} 35. Kd4 {[%clk 0:15:12.6]} 35... Ra4+ {[%clk 0:15:09.2]} 36.
Kc5 {[%clk 0:15:15.2]} 36... Rc4+ {[%clk 0:15:12.6]} 37. Kxb5 {[%clk 0:15:13.9]}
37... Rxc3 {[%clk 0:15:14.6]} 38. Rd1 {[%clk 0:15:17.6]} 38... Rd3 {[%clk
0:15:12.1]} 39. Rxd3 {[%clk 0:15:15.9]} 39... Bxd3+ {[%clk 0:15:15.6]} 40. Kc6
{[%clk 0:15:20.8]} 40... Bf5 {[%clk 0:15:17.5]} 41. d6 {[%clk 0:15:24.9]} 41...
Kg6 {[%clk 0:15:19.3]} 42. d7 {[%clk 0:15:29.5]} 42... Bxd7+ {[%clk 0:15:23]}
43. Kxd7 {[%clk 0:15:34.4]} 43... f5 {[%clk 0:15:27.1]} 44. Ke6 {[%clk 0:15:36]}
44... f4 {[%clk 0:15:30.8]} 45. Ke5 {[%clk 0:15:40.6]} 45... f3 {[%clk
0:15:34.4]} 46. Ke4 {[%clk 0:15:45.3]} 46... f2 {[%clk 0:15:39]} 47. h4 {[%clk
0:15:46.3]} 47... f1=Q {[%clk 0:15:41.6]} 48. Ke3 {[%clk 0:15:50.5]} 48... Qh3+
{[%clk 0:15:41.5]} 49. Ke4 {[%clk 0:15:55.4]} 49... Qxh4+ {[%clk 0:15:45.7]} 50.
Ke5 {[%clk 0:16:00.3]} 50... Qf6+ {[%clk 0:15:49]} 51. Ke4 {[%clk 0:16:04.2]}
51... h4 {[%clk 0:15:52.4]} 52. Ke3 {[%clk 0:16:08]} 52... h3 {[%clk 0:15:56.9]}
53. Ke4 {[%clk 0:16:12.4]} 53... h2 {[%clk 0:16:01.4]} 54. Kd5 {[%clk
0:16:16.7]} 54... h1=Q+ {[%clk 0:16:04.3]} 55. Kc4 {[%clk 0:16:20.4]} 55... Qd6
{[%clk 0:16:03.6]} 56. Kc3 {[%clk 0:16:24.1]} 56... Qc1+ {[%clk 0:16:06.5]} 57.
Kb3 {[%clk 0:16:28.4]} 57... Qb6+ {[%clk 0:16:10.7]} 58. Ka2 {[%clk 0:16:32.9]}
58... Qcb2# {[%clk 0:16:12.5]} 0-1

[Event "Live Chess"]
[Site "Chess.com"]
[Date "2023.09.16"]
[Round "-"]
[White "CroNmo"]
[Black "angelinho2006"]
[Result "1-0"]
[WhiteElo "1848"]
[BlackElo "2077"]
[TimeControl "900+5"]
[EndTime "16:29:18 PDT"]
[Termination "CroNmo venceu por desistência"]

1. e4 {[%clk 0:14:58.6]} 1... c5 {[%clk 0:15:04.1]} 2. Nf3 {[%clk 0:15:02.4]}
2... e6 {[%clk 0:15:07.8]} 3. d4 {[%clk 0:15:05.6]} 3... cxd4 {[%clk 0:15:12.5]}
4. Nxd4 {[%clk 0:15:08.6]} 4... Nc6 {[%clk 0:15:17.2]} 5. Nxc6 {[%clk 0:15:09]}
5... bxc6 {[%clk 0:15:21.1]} 6. Nc3 {[%clk 0:15:09.2]} 6... Nf6 {[%clk
0:15:21.6]} 7. Bd3 {[%clk 0:15:13]} 7... d5 {[%clk 0:15:25.6]} 8. exd5 {[%clk
0:15:14.6]} 8... cxd5 {[%clk 0:15:28.6]} 9. O-O {[%clk 0:15:15.2]} 9... Be7
{[%clk 0:15:31.8]} 10. Qf3 {[%clk 0:15:12.4]} 10... O-O {[%clk 0:15:34.2]} 11.
Bg5 {[%clk 0:15:10.9]} 11... Rb8 {[%clk 0:15:29.1]} 12. b3 {[%clk 0:15:08.7]}
12... h6 {[%clk 0:15:25.8]} 13. Bf4 {[%clk 0:14:57.1]} 13... Rb4 {[%clk
0:15:28.5]} 14. a3 {[%clk 0:14:53]} 14... Rb6 {[%clk 0:15:17.7]} 15. Rad1 {[%clk
0:14:53.9]} 15... Bd6 {[%clk 0:15:04.2]} 16. Bxd6 {[%clk 0:14:40.4]} 16... Qxd6
{[%clk 0:15:05.3]} 17. Na4 {[%clk 0:14:44.5]} 17... Rb8 {[%clk 0:14:52.1]} 18.
Qg3 {[%clk 0:14:44.4]} 18... Qxg3 {[%clk 0:14:49.9]} 19. hxg3 {[%clk 0:14:48.3]}
19... e5 {[%clk 0:14:53]} 20. Nc5 {[%clk 0:14:49]} 20... e4 {[%clk 0:14:52]} 21.
Be2 {[%clk 0:14:46.7]} 21... Bf5 {[%clk 0:14:52.3]} 22. g4 {[%clk 0:14:40.7]}
22... Bg6 {[%clk 0:14:47.9]} 23. Rd2 {[%clk 0:14:21.2]} 23... a5 {[%clk
0:14:50.6]} 24. a4 {[%clk 0:14:16]} 24... Rfc8 {[%clk 0:14:49.2]} 25. Na6 {[%clk
0:14:13.3]} 25... Rb6 {[%clk 0:14:48.6]} 26. Bb5 {[%clk 0:14:15.2]} 26... Rc3
{[%clk 0:14:16.6]} 27. b4 {[%clk 0:13:51.9]} 27... axb4 {[%clk 0:13:51.6]} 28.
Nxb4 {[%clk 0:13:54.9]} 28... Rc5 {[%clk 0:13:32]} 29. Rb1 {[%clk 0:13:28.9]}
29... Rd6 {[%clk 0:13:29.3]} 30. Na6 {[%clk 0:13:21.3]} 30... Rc8 {[%clk
0:13:11.4]} 31. Nb4 {[%clk 0:13:09.1]} 31... Rcd8 {[%clk 0:13:10]} 32. Nc6
{[%clk 0:13:04.9]} 32... R8d7 {[%clk 0:12:34.2]} 33. Ne5 {[%clk 0:13:04.2]}
33... Rc7 {[%clk 0:12:31.2]} 34. Nxg6 {[%clk 0:13:04.7]} 34... fxg6 {[%clk
0:12:36.1]} 35. a5 {[%clk 0:13:05.1]} 35... Nxg4 {[%clk 0:12:37.1]} 36. a6
{[%clk 0:13:00.4]} 36... d4 {[%clk 0:12:36.6]} 37. Ra1 {[%clk 0:12:42]} 37...
Ra7 {[%clk 0:12:31.2]} 38. Re1 {[%clk 0:12:39.3]} 38... Nf6 {[%clk 0:12:16.7]}
39. Red1 {[%clk 0:12:35.4]} 39... Rc7 {[%clk 0:11:14.2]} 40. Rxd4 {[%clk
0:12:32.3]} 40... Rb6 {[%clk 0:11:16]} 41. Rd8+ {[%clk 0:12:22.2]} 41... Kh7
{[%clk 0:11:19.8]} 42. c4 {[%clk 0:12:23.5]} 42... Ng4 {[%clk 0:10:59.3]} 43.
R1d7 {[%clk 0:12:07.5]} 43... Rc5 {[%clk 0:10:34.9]} 44. a7 {[%clk 0:11:57.4]}
44... Rbxb5 {[%clk 0:07:45.5]} 45. cxb5 {[%clk 0:10:55.6]} 45... Rc1+ {[%clk
0:05:56.6]} 46. Rd1 {[%clk 0:10:58.4]} 46... Rxd1+ {[%clk 0:05:57.6]} 47. Rxd1
{[%clk 0:11:01.5]} 1-0

[Event "Live Chess"]
[Site "Chess.com"]
[Date "2023.09.16"]
[Round "-"]
[White "stopgivingup"]
[Black "MNPedroh"]
[Result "0-1"]
[WhiteElo "975"]
[BlackElo "1852"]
[TimeControl "900+5"]
[EndTime "16:29:32 PDT"]
[Termination "MNPedroh venceu por xeque-mate"]

1. c4 {[%clk 0:15:01.7]} 1... Nf6 {[%clk 0:15:02]} 2. Nc3 {[%clk 0:15:01.4]}
2... e6 {[%clk 0:15:03.5]} 3. g3 {[%clk 0:14:52.8]} 3... d5 {[%clk 0:15:05]} 4.
e3 {[%clk 0:14:49.1]} 4... c6 {[%clk 0:14:57.7]} 5. Bg2 {[%clk 0:14:30.4]} 5...
Bd6 {[%clk 0:15:00]} 6. d4 {[%clk 0:14:26.8]} 6... dxc4 {[%clk 0:14:59.7]} 7.
Nge2 {[%clk 0:14:09]} 7... O-O {[%clk 0:14:57]} 8. Bd2 {[%clk 0:14:00.6]} 8...
Nbd7 {[%clk 0:15:00.8]} 9. O-O {[%clk 0:14:04]} 9... e5 {[%clk 0:15:04.9]} 10.
Qc2 {[%clk 0:13:30.6]} 10... Re8 {[%clk 0:14:55.6]} 11. Rad1 {[%clk 0:12:47.4]}
11... Qc7 {[%clk 0:14:49.2]} 12. Be4 {[%clk 0:11:47.5]} 12... Nxe4 {[%clk
0:14:49.4]} 13. Nxe4 {[%clk 0:11:49.2]} 13... exd4 {[%clk 0:14:51]} 14. Nxd6
{[%clk 0:11:34.8]} 14... Qxd6 {[%clk 0:14:54.9]} 15. Nxd4 {[%clk 0:11:36.6]}
15... Ne5 {[%clk 0:14:48.1]} 16. Bc3 {[%clk 0:11:14.9]} 16... Nd3 {[%clk
0:14:44.9]} 17. b3 {[%clk 0:11:03.5]} 17... b5 {[%clk 0:14:40.4]} 18. a4 {[%clk
0:10:53.2]} 18... a6 {[%clk 0:14:29.5]} 19. Nf5 {[%clk 0:10:23.8]} 19... Bxf5
{[%clk 0:14:26.7]} 20. bxc4 {[%clk 0:10:15.4]} 20... bxc4 {[%clk 0:14:31.6]} 21.
Ba1 {[%clk 0:10:07.2]} 21... Bh3 {[%clk 0:14:30.5]} 22. Qc3 {[%clk 0:10:04]}
22... Qf6 {[%clk 0:14:14]} 23. Qxc4 {[%clk 0:09:53.1]} 23... Qf3 {[%clk
0:14:12.3]} 24. Qxd3 {[%clk 0:09:26.5]} 24... Qg2# {[%clk 0:14:16]} 0-1

[Event "Live Chess"]
[Site "Chess.com"]
[Date "2023.09.16"]
[Round "-"]
[White "Miinero"]
[Black "silvaaps"]
[Result "1-0"]
[WhiteElo "1931"]
[BlackElo "783"]
[TimeControl "900+5"]
[EndTime "16:30:03 PDT"]
[Termination "Miinero venceu por desistência"]

1. e4 {[%clk 0:15:01.2]} 1... d5 {[%clk 0:15:02.8]} 2. exd5 {[%clk 0:15:04.7]}
2... Qxd5 {[%clk 0:15:06.4]} 3. Nc3 {[%clk 0:15:09.3]} 3... Qe6+ {[%clk
0:15:09.9]} 4. Be2 {[%clk 0:15:09.1]} 4... Nc6 {[%clk 0:15:08.1]} 5. Nf3 {[%clk
0:15:12.9]} 5... Qg6 {[%clk 0:15:08]} 6. d4 {[%clk 0:15:05.1]} 6... Bg4 {[%clk
0:15:11.7]} 7. Be3 {[%clk 0:15:04.8]} 7... Bxf3 {[%clk 0:15:15]} 8. Bxf3 {[%clk
0:15:09.7]} 8... O-O-O {[%clk 0:15:18.7]} 9. d5 {[%clk 0:15:10.5]} 9... Ne5
{[%clk 0:15:20.8]} 10. O-O {[%clk 0:15:02.3]} 10... Nxf3+ {[%clk 0:15:23.4]} 11.
Qxf3 {[%clk 0:15:07.2]} 11... Qxc2 {[%clk 0:15:26.6]} 12. Rfc1 {[%clk
0:15:10.1]} 12... Qxb2 {[%clk 0:15:30.2]} 13. Rab1 {[%clk 0:15:14.5]} 13... Qa3
{[%clk 0:15:30]} 14. Nb5 {[%clk 0:15:07]} 14... Qxa2 {[%clk 0:15:28.6]} 15.
Rxc7+ {[%clk 0:14:26.5]} 15... Kb8 {[%clk 0:15:28.4]} 16. Rxb7+ {[%clk
0:14:17.2]} 16... Kxb7 {[%clk 0:15:31.8]} 17. d6+ {[%clk 0:14:19.7]} 17... Kc8
{[%clk 0:15:24.7]} 18. Qc6+ {[%clk 0:14:05]} 18... Kb8 {[%clk 0:15:22.2]} 19.
Nxa7+ {[%clk 0:14:06.4]} 19... Qxb1+ {[%clk 0:15:24.3]} 20. Bc1 {[%clk 0:14:10]}
20... Kxa7 {[%clk 0:15:25.5]} 21. g3 {[%clk 0:14:08.1]} 21... Qb6 {[%clk
0:15:15.3]} 22. Be3 {[%clk 0:14:10.3]} 22... Rb8 {[%clk 0:15:06.1]} 23. d7
{[%clk 0:14:06.6]} 23... Ka6 {[%clk 0:14:53]} 24. Bxb6 {[%clk 0:14:06.9]} 24...
Rxb6 {[%clk 0:14:56.6]} 25. Qa8+ {[%clk 0:14:10.5]} 25... Kb5 {[%clk 0:15:00.2]}
26. d8=Q {[%clk 0:14:15.4]} 26... Rd6 {[%clk 0:14:59.5]} 27. Qb7+ {[%clk
0:14:18]} 27... Kc5 {[%clk 0:15:02.6]} 28. Qa5+ {[%clk 0:14:21.1]} 28... Kd4
{[%clk 0:15:06.5]} 29. Qbb4+ {[%clk 0:14:24.8]} 29... Kd3 {[%clk 0:15:10.3]} 30.
Qaa3+ {[%clk 0:14:28.8]} 1-0

[Event "Live Chess"]
[Site "Chess.com"]
[Date "2023.09.16"]
[Round "-"]
[White "Ferazo"]
[Black "Mateus_Claudius"]
[Result "0-1"]
[WhiteElo "1403"]
[BlackElo "1358"]
[TimeControl "900+5"]
[EndTime "16:31:00 PDT"]
[Termination "Mateus_Claudius venceu por desistência"]

1. c4 {[%clk 0:14:57.1]} 1... Nf6 {[%clk 0:14:59.3]} 2. Nc3 {[%clk 0:14:59.1]}
2... e6 {[%clk 0:15:01]} 3. Nf3 {[%clk 0:14:58.4]} 3... d5 {[%clk 0:15:01.4]} 4.
cxd5 {[%clk 0:14:58.4]} 4... exd5 {[%clk 0:15:03.6]} 5. d4 {[%clk 0:14:57.7]}
5... c6 {[%clk 0:14:52.6]} 6. Bf4 {[%clk 0:14:53.9]} 6... Bd6 {[%clk 0:14:51.1]}
7. Bg3 {[%clk 0:14:53.2]} 7... O-O {[%clk 0:14:52.7]} 8. Qc2 {[%clk 0:14:39.8]}
8... Re8 {[%clk 0:13:59.9]} 9. e3 {[%clk 0:14:39.4]} 9... c5 {[%clk 0:13:40.1]}
10. Bd3 {[%clk 0:14:09.8]} 10... cxd4 {[%clk 0:13:36.5]} 11. Nxd4 {[%clk
0:14:14.7]} 11... Nc6 {[%clk 0:13:34.7]} 12. Nf5 {[%clk 0:13:55.2]} 12... Bxg3
{[%clk 0:12:15.6]} 13. Nxg3 {[%clk 0:14:00.1]} 13... Nb4 {[%clk 0:12:07.3]} 14.
Qd2 {[%clk 0:13:43.2]} 14... Nxd3+ {[%clk 0:11:54.1]} 15. Qxd3 {[%clk
0:13:48.1]} 15... d4 {[%clk 0:11:24.8]} 16. Rd1 {[%clk 0:12:58.2]} 16... Bg4
{[%clk 0:09:53.9]} 17. f3 {[%clk 0:11:45.4]} 17... dxc3 {[%clk 0:09:55.3]} 18.
Qxd8 {[%clk 0:11:45.6]} 18... Raxd8 {[%clk 0:09:54.6]} 19. Rxd8 {[%clk
0:11:50.5]} 19... Rxd8 {[%clk 0:09:57.1]} 20. fxg4 {[%clk 0:11:54.2]} 20... cxb2
{[%clk 0:09:46.8]} 21. Ke2 {[%clk 0:11:55.9]} 21... Rc8 {[%clk 0:09:00.2]} 22.
Kd2 {[%clk 0:11:40.1]} 22... Nxg4 {[%clk 0:08:44.9]} 23. h3 {[%clk 0:11:34.8]}
23... Nxe3 {[%clk 0:07:30.2]} 24. Rb1 {[%clk 0:09:56.7]} 24... Nxg2 {[%clk
0:06:33.5]} 25. Rxb2 {[%clk 0:09:54.8]} 25... b6 {[%clk 0:06:37.9]} 26. Ne2
{[%clk 0:09:28.2]} 26... Rd8+ {[%clk 0:06:27.9]} 27. Kc3 {[%clk 0:09:29.9]}
27... f5 {[%clk 0:06:18.4]} 28. Nd4 {[%clk 0:09:28.7]} 28... Nh4 {[%clk
0:06:08.3]} 29. Ne6 {[%clk 0:09:07.4]} 29... Rc8+ {[%clk 0:06:06.1]} 30. Kb4
{[%clk 0:09:09.5]} 30... h6 {[%clk 0:05:56.6]} 31. Kb5 {[%clk 0:09:10.3]} 31...
g5 {[%clk 0:05:56]} 32. Ka6 {[%clk 0:09:13]} 32... Re8 {[%clk 0:05:40.7]} 33.
Kxa7 {[%clk 0:08:51.2]} 33... Rxe6 {[%clk 0:05:40.4]} 34. Rxb6 {[%clk
0:08:55.6]} 34... Rxb6 {[%clk 0:05:43.2]} 35. Kxb6 {[%clk 0:09:00.5]} 35... g4
{[%clk 0:05:47.7]} 36. a4 {[%clk 0:09:03.7]} 36... g3 {[%clk 0:05:41.3]} 0-1

[Event "Live Chess"]
[Site "Chess.com"]
[Date "2023.09.16"]
[Round "-"]
[White "CroNmo"]
[Black "Lucas-LGM"]
[Result "1-0"]
[WhiteElo "1851"]
[BlackElo "1568"]
[TimeControl "900+5"]
[EndTime "16:32:19 PDT"]
[Termination "CroNmo venceu por desistência"]

1. d4 {[%clk 0:15:00.4]} 1... Nf6 {[%clk 0:14:59.3]} 2. c4 {[%clk 0:15:04.8]}
2... d5 {[%clk 0:15:02.6]} 3. cxd5 {[%clk 0:15:08.8]} 3... Nxd5 {[%clk 0:15:07]}
4. e4 {[%clk 0:15:13.2]} 4... Nb6 {[%clk 0:15:10.2]} 5. Nc3 {[%clk 0:15:17.7]}
5... g6 {[%clk 0:15:06.9]} 6. Nf3 {[%clk 0:15:22.3]} 6... Bg7 {[%clk 0:15:11.3]}
7. Be2 {[%clk 0:15:26.2]} 7... e6 {[%clk 0:15:12]} 8. O-O {[%clk 0:15:29.9]}
8... O-O {[%clk 0:15:13.9]} 9. b3 {[%clk 0:15:32.7]} 9... Nc6 {[%clk 0:15:10.2]}
10. Be3 {[%clk 0:15:33.4]} 10... Qe7 {[%clk 0:14:57.2]} 11. Rc1 {[%clk
0:15:35.3]} 11... Nd7 {[%clk 0:15:00.2]} 12. d5 {[%clk 0:15:37.1]} 12... exd5
{[%clk 0:15:03.3]} 13. exd5 {[%clk 0:15:42]} 13... Nce5 {[%clk 0:15:04.5]} 14.
Nxe5 {[%clk 0:15:40.9]} 14... Qxe5 {[%clk 0:15:05.1]} 15. Bf3 {[%clk 0:15:38.1]}
15... Nf6 {[%clk 0:14:59.8]} 16. Re1 {[%clk 0:15:37.9]} 16... Qd6 {[%clk
0:14:59.2]} 17. Nb5 {[%clk 0:15:40.5]} 17... Qd7 {[%clk 0:15:02]} 18. Nxc7
{[%clk 0:15:40.5]} 18... Rb8 {[%clk 0:15:03.9]} 19. d6 {[%clk 0:15:34.4]} 19...
a6 {[%clk 0:15:01.3]} 20. Ba7 {[%clk 0:15:36.9]} 1-0